bitfinex-derivatives/quotes_SOLF0:USTF0_20250109
["timestamp","ask_amount","ask_price","bid_price","bid_amount"]
[1736382283565,2.5392,196.96,196.92,2.5397]
[1736382283759,2.86,196.95,196.92,2.5397]
[1736382284466,2.5395,196.94,196.9,10.46073123]
[1736382284855,2.86,196.95,196.9,7.92083123]
[1736382285060,2.86,196.95,196.92,2.5397]
[1736382285766,2.86,196.95,196.91,2.5398]
[1736382286361,2.86,196.95,196.92,2.5397]
[1736382286764,10.45993123,196.97,196.92,2.5397]
[1736382286963,13.31993123,196.97,196.92,2.5397]
[1736382287259,10.78083123,196.97,196.92,2.5397]
[1736382287465,2.5392,196.96,196.91,2.5398]
[1736382287866,10.78083123,196.97,196.91,2.5398]
[1736382289069,2.5393,196.95,196.91,2.5398]
[1736382289665,2.5393,196.95,196.9,7.92083123]
[1736382289871,2.5396,196.94,196.88,10.46093123]
[1736382290072,7.92083123,196.95,196.88,10.46093123]
[1736382290773,2.5396,196.93,196.89,2.54]
[1736382294172,2.5396,196.93,196.88,7.92083123]
[1736382294173,2.5394,196.94,196.9,2.5399]
[1736382295383,7.92083123,196.96,196.91,2.5397]
[1736382296079,10.46003123,196.96,196.91,2.5397]
[1736382300285,2.5396,196.93,196.88,2.5402]
[1736382300880,10.46033123,196.94,196.89,2.54]
[1736382301888,2.5396,196.93,196.89,2.54]
[1736382302685,2.86,196.97,196.84,1.5049]
[1736382302891,7.92083123,196.9,196.84,9.42573123]
[1736382303092,7.92083123,196.9,196.84,7.92083123]
[1736382303283,2.5402,196.89,196.84,2.5406]
[1736382304493,2.5402,196.89,196.85,2.5406]
[1736382304887,2.5402,196.88,196.83,53.52426105]
[1736382305793,2.5402,196.88,196.83,2.5408]
[1736382308186,2.5402,196.88,196.84,2.5407]
[1736382310095,2.5404,196.87,196.83,2.5408]
[1736382310894,7.92083123,196.88,196.82,2.5409]
[1736382311497,2.5405,196.86,196.82,2.5409]
[1736382313698,2.5404,196.87,196.82,2.5409]
[1736382314094,2.5404,196.87,196.8,7.92083123]
[1736382314095,7.92083123,196.88,196.8,7.92083123]
[1736382314597,10.46103123,196.88,196.8,7.92083123]
[1736382315802,2.5404,196.87,196.8,7.92083123]
[1736382316701,2.5404,196.87,196.82,2.541]
[1736382317102,2.5404,196.87,196.8,7.92083123]
[1736382317303,2.5404,196.87,196.78,1.4687]
[1736382317504,2.5404,196.87,196.8,7.92083123]
[1736382318208,2.5404,196.87,196.82,2.541]
[1736382319101,2.5404,196.87,196.83,2.5408]
[1736382326010,10.46133123,196.86,196.81,2.541]
[1736382327514,2.5409,196.83,196.78,2.5415]
[1736382329312,2.541,196.82,196.77,2.5416]
[1736382329816,13.34183123,196.82,196.77,2.5416]
[1736382335224,13.34183123,196.82,196.78,2.5415]
[1736382343030,2.86,196.85,196.81,2.5411]
[1736382343239,4.7905,196.91,196.81,7.92083123]
[1736382343435,12.6825,197.17,196.85,7.92083123]
[1736382343730,2.86,196.94,196.87,7.92083123]
[1736382343936,2.86,196.94,196.89,7.92083123]
[1736382344634,2.86,196.94,196.91,7.92083123]
[1736382344835,12.83267352,196.98,196.91,7.92083123]
[1736382345036,4.91184229,196.98,196.93,7.92083123]
[1736382345233,2.88,196.99,196.93,7.92083123]
[1736382345638,7.92083123,197.0,196.93,10.46033123]
[1736382346032,10.45953123,197.0,196.93,7.92083123]
[1736382346639,2.5388,196.99,196.92,10.46053123]
[1736382347432,10.80083123,197.0,196.88,3.0385]
[1736382347629,7.92083123,196.96,196.89,2.54]
[1736382347827,7.92083123,196.96,196.88,5.8985]
[1736382347828,7.92083123,196.94,196.88,10.95933123]
[1736382348536,7.92083123,196.94,196.88,3.0385]
[1736382348737,7.92083123,196.94,196.86,10.78083123]
[1736382349138,7.92083123,196.94,196.87,2.5403]
[1736382350038,7.92083123,196.94,196.88,10.46103123]
[1736382350239,2.86,196.95,196.88,7.92083123]
[1736382350727,5.3993,196.95,196.89,2.5401]
[1736382351541,5.3993,196.95,196.9,2.5399]
[1736382352041,7.92083123,196.94,196.9,2.5399]
[1736382354041,2.86,196.95,196.9,2.5399]
[1736382355038,13.32003123,196.96,196.9,2.5399]
[1736382357244,13.32003123,196.96,196.88,7.92083123]
[1736382357544,13.32003123,196.96,196.91,2.5398]
[1736382362043,7.92083123,196.94,196.83,195.5891]
[1736382362249,7.92083123,196.9,196.83,12.50993123]
[1736382362549,7.92083123,196.9,196.83,4.5891]
[1736382362750,10.46103123,196.88,196.82,53.5321637]
[1736382363447,2.5404,196.87,196.82,53.5321637]
[1736382363639,2.5404,196.87,196.82,2.5409]
[1736382364451,2.5405,196.86,196.82,2.5409]
[1736382364849,2.5405,196.86,196.8,7.92083123]
[1736382365146,2.5405,196.86,196.81,2.5411]
[1736382366451,10.46133123,196.86,196.81,2.5411]
[1736382367551,7.92083123,196.86,196.8,7.92083123]
[1736382367751,10.78083123,196.86,196.8,7.92083123]
[1736382367948,2.86,196.86,196.8,7.92083123]
[1736382368251,2.86,196.86,196.81,2.541]
[1736382368447,2.86,196.86,196.8,7.92083123]
[1736382368953,2.86,196.86,196.82,2.5409]
[1736382370252,2.86,196.86,196.83,2.5408]
[1736382371254,5.4005,196.86,196.81,2.541]
[1736382371451,10.78083123,196.86,196.78,7.92083123]
[1736382371957,2.5406,196.85,196.81,2.5411]
[1736382374452,13.32133123,196.86,196.82,2.5409]
[1736382374658,2.86,196.86,196.8,7.92083123]
[1736382375454,2.86,196.86,196.83,2.5407]
[1736382375961,10.78083123,196.86,196.83,2.5407]
[1736382379763,2.5406,196.85,196.8,2.5412]
[1736382380060,7.92083123,196.84,196.77,7.92083123]
[1736382380963,10.46153123,196.84,196.79,2.5413]
[1736382383159,7.92083123,196.82,196.79,2.5413]
[1736382389267,2.5407,196.84,196.72,198.3312]
[1736382389268,7.92083123,196.84,196.77,7.92083123]
[1736382389463,2.5404,196.87,196.77,7.92083123]
[1736382389664,7.92083123,196.88,196.81,7.92083123]
[1736382390065,7.92083123,196.88,196.84,2.5407]
[1736382392970,10.46103123,196.88,196.84,2.5407]
[1736382393669,10.46103123,196.88,196.78,2.86]
[1736382393670,10.46103123,196.88,196.83,2.5408]
[1736382394068,7.92083123,196.84,196.8,2.5412]
[1736382394368,7.92083123,196.82,196.75,36.02659783]
[1736382394870,7.92083123,196.82,196.77,2.5416]
[1736382395071,7.92083123,196.82,196.75,36.02659783]
[1736382395374,7.92083123,196.82,196.78,2.5414]
[1736382396071,7.92083123,196.82,196.79,2.5413]
[1736382397670,7.92083123,196.82,196.73,30.9657666]
[1736382397976,10.46183123,196.82,196.77,2.5415]
[1736382398273,10.46183123,196.82,196.75,7.92083123]
[1736382398772,10.46183123,196.82,196.73,28.1057666]
[1736382398975,10.46183123,196.82,196.75,7.92083123]
[1736382399177,10.46183123,196.82,196.78,2.5415]
[1736382400574,10.46183123,196.82,196.73,28.1057666]
[1736382400575,7.92083123,196.8,196.73,7.02644165]
[1736382400774,7.92083123,196.78,196.73,7.02644165]
[1736382401270,2.86,196.79,196.73,14.94727288]
[1736382401676,2.86,196.79,196.73,7.92083123]
[1736382401880,2.86,196.79,196.75,7.92083123]
[1736382402071,7.92083123,196.84,196.77,7.92083123]
[1736382402266,2.86,196.83,196.77,7.92083123]
[1736382402467,10.78083123,196.84,196.77,7.92083123]
[1736382404075,10.78083123,196.84,196.8,2.5411]
[1736382405282,7.92083123,196.84,196.8,2.5411]
[1736382410384,7.1069,196.88,196.83,2.5408]
[1736382410680,10.78083123,196.87,196.83,2.5408]
[1736382411779,10.78083123,196.87,196.79,7.92083123]
[1736382411985,7.92083123,196.85,196.77,7.92083123]
[1736382413183,10.46143123,196.85,196.8,2.5412]
[1736382414187,7.92083123,196.83,196.76,2.5417]
[1736382414375,7.92083123,196.81,196.74,4.5772]
[1736382414579,7.92083123,196.81,196.74,12.49803123]
[1736382414980,7.92083123,196.81,196.77,2.5415]
[1736382415186,7.92083123,196.81,196.71,79.12621188]
[1736382415484,7.92083123,196.75,196.71,28.1057666]
[1736382415686,7.92083123,196.75,196.69,28.1057666]
[1736382416380,2.542,196.74,196.7,2.5425]
[1736382416581,7.92083123,196.75,196.69,28.1057666]
[1736382416777,7.92083123,196.75,196.7,2.5425]
[1736382417085,7.92083123,196.75,196.68,9.49453123]
[1736382417588,7.92083123,196.75,196.7,2.5425]
[1736382418086,10.46273123,196.75,196.7,2.5425]
[1736382419687,7.92083123,196.75,196.65,2.86]
[1736382419988,7.92083123,196.73,196.67,7.92083123]
[1736382421182,10.46293123,196.73,196.69,2.5426]
[1736382421790,7.92083123,196.73,196.69,2.5426]
[1736382422487,2.5419,196.75,196.71,2.5424]
[1736382422989,13.32263123,196.76,196.71,2.5424]
[1736382425393,2.5414,196.79,196.68,7.92083123]
[1736382425593,7.92083123,196.77,196.7,7.92083123]
[1736382425894,7.92083123,196.77,196.73,2.542]
[1736382426993,7.92083123,196.77,196.72,2.5422]
[1736382427791,10.46243123,196.77,196.72,2.5422]
[1736382430001,2.5421,196.73,196.68,2.5427]
[1736382430203,7.92083123,196.73,196.66,7.92083123]
[1736382430606,10.46323123,196.71,196.66,2.543]
[1736382432009,2.5424,196.71,196.66,10.46383123]
[1736382433003,2.5428,196.69,196.64,4.0667]
[1736382433204,7.92083123,196.69,196.64,2.5432]
[1736382434109,2.5428,196.68,196.64,2.5432]
[1736382434604,7.92083123,196.69,196.64,2.5432]
[1736382435408,7.92083123,196.69,196.59,2.86]
[1736382435604,7.92083123,196.69,196.62,7.92083123]
[1736382435804,2.5429,196.67,196.62,10.46423123]
[1736382436106,7.92083123,196.67,196.62,10.46423123]
[1736382436803,2.5432,196.65,196.62,10.46423123]
[1736382437008,7.92083123,196.67,196.62,10.46423123]
[1736382437711,10.78083123,196.67,196.61,2.5437]
[1736382438206,10.78083123,196.67,196.57,1.4744]
[1736382438413,2.5434,196.63,196.59,10.46463123]
[1736382439113,2.5433,196.64,196.6,2.5438]
[1736382445716,2.5433,196.64,196.61,2.5437]
[1736382446120,2.5433,196.64,196.6,2.5438]
[1736382447314,2.5437,196.61,196.57,2.5441]
[1736382447515,7.92083123,196.63,196.56,7.92083123]
[1736382448018,2.5437,196.61,196.58,2.544]
[1736382448422,7.92083123,196.61,196.54,7.92083123]
[1736382448620,2.5439,196.6,196.56,2.5442]
[1736382449216,2.5439,196.6,196.54,7.92083123]
[1736382449420,2.5439,196.6,196.57,2.5442]
[1736382450020,10.46453123,196.61,196.57,2.5442]
[1736382453414,7.92083123,196.61,196.53,191.0]
[1736382453615,7.92083123,196.59,196.53,191.0]
[1736382454622,2.5442,196.58,196.53,193.5446]
[1736382455121,2.86,196.62,196.53,191.0]
[1736382455326,7.92083123,196.6,196.56,2.5443]
[1736382458128,10.78083123,196.6,196.57,2.5442]
[1736382458427,10.78083123,196.65,196.58,7.92083123]
[1736382458618,10.78083123,196.65,196.61,2.5436]
[1736382459017,2.86,196.65,196.61,2.5436]
[1736382459327,10.78083123,196.68,196.62,7.92083123]
[1736382459727,7.92083123,196.68,196.66,2.543]
[1736382461321,7.92083123,196.7,196.64,2.5432]
[1736382462125,10.46343123,196.7,196.64,2.5432]
[1736382462325,7.92083123,196.7,196.64,2.5432]
[1736382462524,7.4679,196.72,196.64,2.5432]
[1736382462525,7.92083123,196.68,196.64,2.5432]
[1736382462827,7.92083123,196.68,196.63,2.5434]
[1736382463226,7.4679,196.72,196.62,7.92083123]
[1736382463426,7.92083123,196.69,196.62,7.92083123]
[1736382464232,10.46353123,196.69,196.64,2.5433]
[1736382465230,7.92083123,196.69,196.65,2.5431]
[1736382469631,7.92083123,196.69,196.66,2.543]
[1736382473934,7.92083123,196.69,196.63,7.92083123]
[1736382474134,7.92083123,196.69,196.65,2.5432]
[1736382475934,10.46353123,196.69,196.65,2.5432]
[1736382480130,10.46353123,196.69,196.61,7.92083123]
[1736382480335,10.46353123,196.69,196.64,2.5433]
[1736382480635,7.92083123,196.69,196.58,2.86]
[1736382480938,2.86,196.7,196.63,7.92083123]
[1736382481139,7.92083123,196.69,196.63,7.92083123]
[1736382481633,10.35852338,196.77,196.65,7.92083123]
[1736382481838,7.92083123,196.74,196.67,7.92083123]
[1736382482339,7.92083123,196.74,196.69,2.5425]
[1736382483039,2.5423,196.73,196.68,2.5428]
[1736382483238,7.92083123,196.72,196.65,9.49243123]
[1736382483639,7.92083123,196.74,196.67,10.46373123]
[1736382483842,7.92083123,196.74,196.67,13.32373123]
[1736382484238,7.92083123,196.72,196.67,5.4029]
[1736382484638,10.46323123,196.72,196.67,5.4029]
[1736382485241,2.5424,196.72,196.68,2.5428]
[1736382487642,2.5424,196.72,196.67,5.4029]
[1736382488745,2.542,196.74,196.7,2.5425]
[1736382488935,10.46283123,196.74,196.7,2.5425]
[1736382490245,2.5424,196.72,196.68,2.5427]
[1736382491046,2.5424,196.71,196.68,2.5427]
[1736382491742,7.92083123,196.74,196.68,2.5427]
[1736382491944,2.5423,196.72,196.68,2.5427]
[1736382492949,2.5423,196.72,196.66,2.86]
[1736382493147,2.5423,196.72,196.68,2.5427]
[1736382493737,2.5423,196.72,196.67,2.5428]
[1736382493942,2.5423,196.72,196.66,10.78083123]
[1736382495247,2.5423,196.72,196.68,2.5427]
[1736382499952,2.5423,196.72,196.69,2.5426]
[1736382501748,2.5423,196.72,196.66,10.78083123]
[1736382503152,2.5423,196.72,196.65,1.5716]
[1736382503153,7.92083123,196.71,196.59,219.1057666]
[1736382503352,7.92083123,196.71,196.62,7.92083123]
[1736382503649,7.92083123,196.69,196.64,2.5433]
[1736382504549,2.5428,196.68,196.64,2.5433]
[1736382504849,2.5428,196.68,196.62,7.92083123]
[1736382505545,2.5428,196.68,196.64,2.5432]
[1736382508159,2.5428,196.68,196.65,2.5432]
[1736382510753,10.46353123,196.69,196.65,2.5432]
[1736382513561,7.92083123,196.69,196.6,1.4879]
[1736382513758,2.5428,196.68,196.64,2.5433]
[1736382514560,2.5428,196.68,196.65,2.5432]
[1736382514865,7.92083123,196.67,196.6,1.4879]
[1736382515155,7.92083123,196.63,196.59,191.0]
[1736382515464,7.92083123,196.63,196.56,9.40983123]
[1736382515663,10.46433123,196.63,196.59,2.5439]
[1736382516555,2.5436,196.62,196.58,2.544]
[1736382517364,10.46433123,196.63,196.59,2.5439]
[1736382518365,2.5438,196.6,196.56,2.5443]
[1736382518569,7.92083123,196.59,196.53,191.0]
[1736382518765,7.92083123,196.59,196.53,198.92083123]
[1736382518966,7.92083123,196.59,196.53,191.0]
[1736382519562,7.92083123,196.59,196.55,2.5445]
[1736382525571,2.86,196.62,196.52,2.5448]
[1736382525572,2.5444,196.56,196.52,2.5448]
[1736382525772,7.92083123,196.55,196.51,51.0742255]
[1736382526676,7.92083123,196.55,196.49,2.5451]
[1736382527273,7.92083123,196.53,196.49,2.5451]
[1736382527576,7.92083123,196.53,196.47,7.92083123]
[1736382527577,7.92083123,196.55,196.5,2.5451]
[1736382528271,10.46533123,196.55,196.5,2.5451]
[1736382529178,10.46533123,196.55,196.49,7.92083123]
[1736382529476,10.46533123,196.55,196.51,2.545]
[1736382530379,2.86,196.57,196.53,2.5446]
[1736382530585,10.78083123,196.57,196.51,7.92083123]
[1736382531090,10.78083123,196.57,196.54,2.5445]
[1736382532282,7.92083123,196.57,196.54,2.5445]
[1736382532479,5.59,196.61,196.55,2.5443]
[1736382532680,1.5316,196.7,196.53,7.92083123]
[1736382532883,7.92083123,196.61,196.53,7.92083123]
[1736382533081,10.46453123,196.61,196.56,2.5442]
[1736382533286,7.92083123,196.63,196.57,7.92083123]
[1736382533587,7.92083123,196.63,196.57,10.78083123]
[1736382533984,3.1001,196.69,196.6,2.5437]
[1736382533985,10.46403123,196.65,196.6,2.5437]
[1736382534183,7.92083123,196.65,196.59,7.92083123]
[1736382534487,7.92083123,196.72,196.67,2.5428]
[1736382534684,2.9634,196.76,196.68,7.92083123]
[1736382534885,7.92083123,196.74,196.68,7.92083123]
[1736382535187,2.9634,196.76,196.68,7.92083123]
[1736382535386,7.92083123,196.76,196.68,7.92083123]
[1736382535586,7.92083123,196.76,196.66,2.86]
[1736382535587,7.92083123,196.76,196.7,7.92083123]
[1736382535788,7.92083123,196.77,196.7,7.92083123]
[1736382536286,10.46253123,196.77,196.7,10.46323123]
[1736382537186,2.5417,196.77,196.71,2.5424]
[1736382537387,10.46253123,196.77,196.71,2.5424]
[1736382537686,2.86,196.82,196.74,2.542]
[1736382537887,7.92083123,196.8,196.74,10.46283123]
[1736382538289,2.86,196.82,196.76,2.5417]
[1736382538588,7.92083123,196.81,196.76,2.5417]
[1736382540382,4.91539521,196.84,196.71,2.86]
[1736382540587,7.92083123,196.83,196.76,7.92083123]
[1736382540887,7.92083123,196.83,196.76,10.78083123]
[1736382541086,7.92083123,196.83,196.78,2.5414]
[1736382545984,4.91539521,196.84,196.8,7.92083123]
[1736382546185,7.92083123,196.9,196.82,7.92083123]
[1736382546488,4.5169,196.94,196.84,7.92083123]
[1736382546489,7.3769,196.94,196.84,7.92083123]
[1736382546884,7.3769,196.94,196.81,2.86]
[1736382547092,7.92083123,196.93,196.86,7.92083123]
[1736382548193,7.92083123,196.93,196.88,2.5401]
[1736382548388,2.5395,196.94,196.88,2.5401]
[1736382548594,10.46033123,196.94,196.88,2.5401]
[1736382550100,2.86,196.96,196.89,2.5401]
[1736382550301,7.92083123,196.93,196.89,2.5401]
[1736382551300,7.92083123,196.93,196.87,7.92083123]
[1736382551496,7.92083123,196.95,196.9,2.5399]
[1736382552197,2.86,196.96,196.89,7.92083123]
[1736382552399,10.45973123,196.98,196.92,2.5397]
[1736382554901,10.45973123,196.98,196.91,10.82083123]
[1736382556102,7.92083123,197.0,196.95,2.5393]
[1736382556403,2.9,197.05,196.95,7.92083123]
[1736382556696,7.92083123,197.02,196.97,2.539]
[1736382557595,2.5385,197.01,196.95,2.5392]
[1736382557796,7.92083123,196.98,196.92,7.92083123]
[1736382558398,7.92083123,197.0,196.94,2.5394]
[1736382558799,7.92083123,197.0,196.92,7.92083123]
[1736382558996,2.5389,196.98,196.92,7.92083123]
[1736382560207,2.5389,196.98,196.93,2.5394]
[1736382563005,2.5389,196.98,196.92,7.92083123]
[1736382563308,2.5389,196.98,196.94,2.5394]
[1736382567907,2.5389,196.98,196.94,10.46023123]
[1736382570107,2.5388,196.99,196.94,10.46023123]
[1736382574512,2.5388,196.99,196.95,2.5393]
[1736382576111,13.35953123,197.0,196.96,2.5392]
[1736382579211,10.82083123,197.0,196.91,2.9]
[1736382579514,10.82083123,197.0,196.94,7.92083123]
[1736382580215,10.82083123,197.0,196.94,10.46013123]
[1736382580713,2.5388,196.99,196.94,10.46013123]
[1736382581714,2.5388,196.99,196.95,2.5393]
[1736382590018,2.5391,196.97,196.92,7.92083123]
[1736382590421,2.5391,196.97,196.93,2.5395]
[1736382590718,2.5392,196.96,196.93,2.5395]
[1736382590912,2.5392,196.96,196.92,10.46043123]
[1736382591524,2.5392,196.96,196.93,2.5395]
[1736382596727,7.92083123,196.98,196.93,2.5395]
[1736382596927,2.5391,196.97,196.93,2.5395]
[1736382597427,2.5391,196.97,196.94,2.5394]
[1736382600627,2.539,196.98,196.94,2.5394]
[1736382604730,2.539,196.98,196.95,2.5393]
[1736382606031,13.24639966,197.09,196.98,2.5389]
[1736382606332,7.92083123,197.05,196.98,10.78083123]
[1736382606533,2.5381,197.05,196.98,10.78083123]
[1736382606733,13.24639966,197.09,197.0,7.92083123]
[1736382606928,7.92083123,197.07,197.0,7.92083123]
[1736382607128,7.92083123,197.07,197.02,7.92083123]
[1736382607333,13.24639966,197.09,197.03,2.86]
[1736382607532,21.16723089,197.09,197.03,2.86]
[1736382607731,12.44693123,197.09,197.03,2.86]
[1736382608032,14.98453123,197.09,197.04,2.5381]
[1736382608427,14.98453123,197.09,197.04,5.3981]
[1736382608630,14.98453123,197.09,197.05,2.86]
[1736382608827,14.98453123,197.09,197.04,5.3981]
[1736382610130,14.98453123,197.09,197.04,2.5381]
[1736382610336,2.5377,197.08,197.04,2.86]
[1736382610633,2.5377,197.08,197.03,2.5383]
[1736382612436,2.5377,197.08,197.04,2.5381]
[1736382612939,14.98453123,197.09,197.04,2.5381]
[1736382613231,84.12863273,197.1,197.02,7.92083123]
[1736382613436,7.92083123,197.09,197.05,2.538]
[1736382615127,7.92083123,197.09,197.06,2.5379]
[1736382615731,7.92083123,197.09,197.04,2.538]
[1736382616736,7.92083123,197.09,197.04,7.92083123]
[1736382618240,7.92083123,197.09,197.06,2.5379]
[1736382618742,7.44603273,197.1,197.06,2.5379]
[1736382621041,4.90863273,197.1,197.07,2.5377]
[1736382621449,2.86,197.17,197.08,7.92083123]
[1736382621642,2.5368,197.15,197.11,2.5372]
[1736382623146,7.92083123,197.18,197.12,7.92083123]
[1736382624043,2.9801,197.2,197.14,7.92083123]
[1736382624248,79.2,197.21,197.11,2.86]
[1736382624249,79.2,197.21,197.16,7.92083123]
[1736382624448,7.92083123,197.22,197.16,7.92083123]
[1736382624645,2.88,197.26,197.16,10.80083123]
[1736382624950,7.92083123,197.24,197.18,7.92083123]
[1736382626146,2.5357,197.23,197.18,7.92083123]
[1736382626642,7.92083123,197.24,197.11,191.0]
[1736382626950,7.92083123,197.18,197.11,198.92083123]
[1736382627142,2.88,197.17,197.11,7.92083123]
[1736382627448,2.88,197.17,197.09,10.45833123]
[1736382627449,2.5368,197.15,197.09,10.45833123]
[1736382627851,7.92083123,197.16,197.07,3.1888]
[1736382628151,7.92083123,197.1,197.0,2.88]
[1736382628351,7.92083123,197.1,197.02,7.92083123]
[1736382628352,2.88,197.1,197.02,7.92083123]
[1736382628548,2.88,197.1,197.04,7.92083123]
[1736382629152,2.5375,197.09,197.04,7.92083123]
[1736382629347,4.3638,197.14,197.08,7.92083123]
[1736382629542,2.88,197.14,197.08,7.92083123]
[1736382630251,5.417,197.14,197.08,10.45833123]
[1736382630451,2.88,197.14,197.08,7.92083123]
[1736382630753,7.92083123,197.11,197.04,10.45893123]
[1736382630947,7.92083123,197.09,197.01,2.88]
[1736382631249,2.88,197.08,197.02,7.92083123]
[1736382631951,2.5379,197.06,197.02,7.92083123]
[1736382632253,7.92083123,197.07,196.99,7.92083123]
[1736382632449,2.5381,197.04,196.99,7.92083123]
[1736382632642,7.92083123,197.05,196.98,2.5389]
[1736382633851,2.5381,197.04,196.99,7.92083123]
[1736382634146,2.88,197.12,197.03,7.92083123]
[1736382634347,7.92083123,197.11,197.05,7.92083123]
[1736382635149,7.92083123,197.07,196.98,2.88]
[1736382635349,7.92083123,197.07,197.0,7.92083123]
[1736382635545,2.5379,197.06,197.0,7.92083123]
[1736382636554,13.33863123,197.07,197.0,7.92083123]
[1736382636750,10.80083123,197.07,197.0,7.92083123]
[1736382638249,2.5379,197.06,197.01,2.5385]
[1736382639151,1.464,197.13,197.02,7.92083123]
[1736382639347,7.92083123,197.11,197.04,7.92083123]
[1736382639553,2.88,197.11,197.06,7.92083123]
[1736382640244,7.92083123,197.13,197.06,7.92083123]
[1736382640554,2.88,197.14,197.08,7.92083123]
[1736382641149,2.88,197.14,197.09,2.5374]
[1736382641654,5.4169,197.14,197.08,7.92083123]
[1736382641848,5.4169,197.14,197.08,10.45843123]
[1736382642455,2.88,197.14,197.08,10.45843123]
[1736382642656,2.537,197.13,197.08,10.45843123]
[1736382643458,2.537,197.13,197.08,2.5376]
[1736382647164,2.537,197.13,197.08,10.45843123]
[1736382647360,2.88,197.15,197.08,7.92083123]
[1736382647560,7.92083123,197.19,197.12,10.45793123]
[1736382648165,2.5364,197.18,197.12,10.45793123]
[1736382648368,7.92083123,197.19,197.14,2.5368]
[1736382648974,10.45713123,197.19,197.14,2.5368]
[1736382649862,10.45713123,197.19,197.12,7.92083123]
[1736382649863,2.5364,197.18,197.12,10.45783123]
[1736382650069,7.92083123,197.17,197.1,7.92083123]
[1736382650268,7.92083123,197.15,197.08,2.9]
[1736382650466,7.92083123,197.13,197.06,7.92083123]
[1736382650669,7.92083123,197.09,197.0,36.73029725]
[1736382650972,10.82083123,197.09,197.01,7.92083123]
[1736382651666,2.5376,197.08,197.03,7.92083123]
[1736382651871,10.82083123,197.09,197.0,36.73029725]
[1736382651872,2.9,197.09,197.05,7.92083123]
[1736382652368,2.9,197.09,197.05,10.45883123]
[1736382654171,2.9,197.09,197.05,7.92083123]
[1736382654373,2.9,197.09,197.06,2.5379]
[1736382655066,2.9,197.09,197.05,7.92083123]
[1736382655268,2.9,197.09,197.07,2.5378]
[1736382656369,2.9,197.09,197.05,7.92083123]
[1736382656564,2.9,197.09,197.06,2.5379]
[1736382663567,2.9,197.09,197.0,36.73029725]
[1736382663769,2.9,197.09,197.03,7.92083123]
[1736382664167,2.5378,197.07,197.03,10.45903123]
[1736382664668,7.92083123,197.08,197.01,7.92083123]
[1736382664872,7.92083123,197.06,196.99,7.92083123]
[1736382666773,2.5382,197.04,196.99,10.45963123]
[1736382666974,5.4182,197.04,196.99,10.45963123]
[1736382667176,5.4182,197.04,196.99,7.92083123]
[1736382667369,2.88,197.04,196.99,7.92083123]
[1736382667573,7.92083123,197.08,197.01,7.92083123]
[1736382667768,7.92083123,197.1,197.03,7.92083123]
[1736382668078,2.9,197.14,197.09,7.92083123]
[1736382668272,2.9,197.16,197.11,7.92083123]
[1736382668877,2.9,197.16,197.13,2.537]
[1736382669076,2.9,197.19,197.13,7.92083123]
[1736382669275,2.9,197.19,197.15,7.92083123]
[1736382669476,2.9,197.19,197.06,195.7331]
[1736382669477,2.9,197.19,197.13,7.92083123]
[1736382670081,2.9,197.19,197.11,7.92083123]
[1736382670082,10.82083123,197.19,197.11,7.92083123]
[1736382670577,7.92083123,197.17,197.09,7.92083123]
[1736382670778,7.92083123,197.15,197.09,7.92083123]
[1736382670975,7.92083123,197.13,197.07,7.92083123]
[1736382671184,7.92083123,197.13,197.01,2.9]
[1736382671185,2.5374,197.1,197.05,7.92083123]
[1736382671382,7.92083123,197.11,197.03,7.92083123]
[1736382671980,2.5375,197.09,197.03,10.45913123]
[1736382672182,5.4575,197.09,197.03,10.45913123]
[1736382672780,2.5376,197.08,197.03,7.92083123]
[1736382673282,2.5376,197.08,197.02,2.5384]
[1736382674479,2.5376,197.08,197.03,2.5383]
[1736382674679,5.4575,197.09,197.0,12.36456652]
[1736382675979,2.92,197.09,197.0,12.36456652]
[1736382676283,12.36456652,197.16,197.03,12.36456652]
[1736382676483,5.4568,197.15,197.06,12.36456652]
[1736382676675,2.92,197.14,197.06,12.36456652]
[1736382676880,2.92,197.14,197.07,4.4785]
[1736382678081,2.92,197.14,197.09,12.36456652]
[1736382678285,2.5366,197.16,197.09,12.36456652]